Cogmind - Beta 16 @@@ ROGUE MODE // 2025.11.10 @ 11:03:58 // AFD2020/Player2 Player: Demo Result: Core destroyed Performance ------------- Evolutions (6) 3000 Regions Visited (10) 2000 Robots Destroyed (126) 630 Value Destroyed (5720) 5720 Prototype IDs (9) 180 Alien Tech Used (0) 0 Bonus (7104) 7104 TOTAL SCORE: 18634 Bonus ------- High Alert Combat Kills 2082 Follower Combat Kills 3580 Network Hubs Disabled 400 Registered with UFD 300 Met Optimus in HQ 500 Built Enhanced Grunts 300 A7 Reached Mainframe 300 Met R17 at Cetus 500 Friendly Fire -858 Cogmind --------- Core Integrity 0/1150 Matter 87/300 Energy 98/100 System Corruption 2% Temperature Cool (0) Movement Core (50) Location -4/Factory Parts ------- > --- POWER (4) -------- (None) > --- PROPULSION (2) --- (None) > --- UTILITY (8) ------ (None) > --- WEAPON (5) ------- (None) > --- INVENTORY (5) ---- Reinforced Fission Core Deep Structural Scanner Improved Terrain Scanner Improved Kinecellerator Improved Plasma Cutter Peak State ------------ > --- POWER ------------ Reinforced Fission Core Micro Fission Core Light Antimatter Reactor Light Antimatter Reactor > --- PROPULSION ------- Armored Huge Wheel > --- UTILITY ---------- Experimental Heat Sink Large Storage Unit Improved Terrain Scanner Surveybot 17 Chip Improved Medium Armor Plating Centrium Medium Armor Plating Remote Force Field Makeshift Hacking Suite > --- WEAPON ----------- Plasma Rifle Advanced Variable Charge Gun Gauss Rifle Advanced KE Penetrator Ionic Axe > --- INVENTORY -------- Light Nuclear Core Improved Fusion Compressor Armored Huge Wheel Experimental Heat Sink Deep Structural Scanner Improved Targeting Computer Improved Kinecellerator Advanced Actuator Array Improved Propulsion Shielding Experimental Thermal Shield Remote Force Field Grenade Launcher Improved Plasma Cutter CPS Tube [Rating: 114] Favorites ----------- Power Neutrino Core Engine Light Angular Momentum Engine Power Core Neutrino Core Reactor Quantum Reactor Propulsion Wheel Treads Light Treads Wheel Wheel Utility Advanced Heat Sink Device Advanced Heat Sink Storage Large Storage Unit Processor Surveybot 17 Chip Hackware Makeshift Hacking Suite Protection Centrium Medium Armor Plating Weapon Wave Gun Energy Gun Wave Gun Energy Cannon Cooled Plasma Cannon Ballistic Gun KE Penetrator Launcher Grenade Launcher Special Weapon Improved Plasma Cutter Impact Weapon Power Maul Slashing Weapon Makeshift Sword Special Melee Weapon Datajack Build | -11 -10 -10 -10 -7 -5 -5 -5 -5 -5 -4 ------- Run | Yrd Mat Min Sub Scr Fac Ext Cet Arc Hub Fac Slots Evolved 12 | . . . . . 10 . . . . 2 Power 3 | . . . . . 1 . . . . 2 Propulsion . | . . . . . . . . . . . Utility 6 | . . . . . 6 . . . . . Weapon 3 | . . . . . 3 . . . . . Parts Attached 137 | 8 2 6 3 6 32 27 9 3 14 27 Power 22 | 1 . . . 1 2 4 1 1 3 9 Engine 9 | 1 . . . 1 1 3 . . 2 1 Core 9 | . . . . . 1 1 . . 1 6 Reactor 4 | . . . . . . . 1 1 . 2 Propulsion 23 | 4 . . 1 2 5 5 . . 4 2 Treads 2 | 2 . . . . . . . . . . Leg . | . . . . . . . . . . . Wheel 21 | 2 . . 1 2 5 5 . . 4 2 Hover . | . . . . . . . . . . . Flight . | . . . . . . . . . . . Utility 50 | 1 1 4 1 1 16 9 4 2 4 7 Device 28 | . . 3 . . 8 6 3 2 2 4 Storage 3 | 1 1 . . . 1 . . . . . Processor 5 | . . . . . 1 2 . . 1 1 Hackware 1 | . . . . . 1 . . . . . Protection 13 | . . 1 1 1 5 1 1 . 1 2 Artifact . | . . . . . . . . . . . Weapon 42 | 2 1 2 1 2 9 9 4 . 3 9 Energy Gun 19 | 2 1 . . . 6 3 2 . . 5 Energy Cannon 2 | . . . . . 2 . . . . . Ballistic Gun 13 | . . . 1 . . 6 1 . 3 2 Ballistic Cannon . | . . . . . . . . . . . Launcher 1 | . . 1 . . . . . . . . Special Weapon 2 | . . . . . . . 1 . . 1 Impact Weapon 1 | . . . . 1 . . . . . . Slashing Weapon 3 | . . . . 1 1 . . . . 1 Piercing Weapon . | . . . . . . . . . . . Special Melee Weapon 1 | . . 1 . . . . . . . . Unidentified Prototypes 6 | . . . . . 2 . 4 . . . Parts Lost 42 | . . . . . 2 5 . . 5 30 Power 9 | . . . . . 1 . . . 1 7 Propulsion 5 | . . . . . . . . . 3 2 Utility 11 | . . . . . 1 2 . . . 8 Weapon 17 | . . . . . . 3 . . 1 13 Highest Loss Streak 16 | . . . . . 1 2 . . 3 16 To Critical Strikes . | . . . . . . . . . . . Average Backups 12 | 2 1 4 13 13 13 15 14 15 14 12 Power . | . . . 1 . . 1 . . . 1 Propulsion 1 | 1 . 1 3 1 1 2 2 2 1 . Utility 5 | . . 1 6 8 6 6 5 5 5 6 Weapon 2 | . . 1 2 1 3 3 5 6 5 1 Tool/Special . | . . . . . . . . . . . Unused Backups 33 | . 2 9 1 4 8 1 . . 2 6 Power 1 | . 1 . . . . . . . . . Propulsion 9 | . . 3 1 2 2 . . . . 1 Utility 17 | . . 5 . 2 6 . . . 2 2 Weapon 5 | . 1 1 . . . 1 . . . 2 Tool/Special 1 | . . . . . . . . . . 1 Average Slot Usage (%) 94 | . 74 98 100 90 93 99 100 100 95 89 Engine 8 | . 14 14 14 14 4 5 3 . 3 6 Core 2 | . . . . . 3 5 5 1 . 8 Treads 3 | . 14 14 14 4 . . . . . . Wheel 11 | . 14 14 14 14 9 10 11 11 10 7 Device 14 | . . 7 2 . 18 25 23 23 20 16 Storage 8 | . 16 18 14 14 5 5 5 5 5 4 Processor 1 | . . . . . 2 . 5 5 5 5 Hackware 2 | . . . . . 3 5 5 5 5 4 Protection 8 | . . . 11 14 11 7 5 5 7 7 Energy Gun 14 | . 15 27 21 4 15 14 17 17 13 5 Energy Cannon 1 | . . . . . 6 . . . . . Ballistic Gun 6 | . . . 3 4 . 12 10 11 12 12 Impact Weapon 1 | . . . . 9 1 . . . . . Slashing Weapon 2 | . . . . 9 . . . . . 3 Peak Build Rating 114 | 6 7 11 12 29 85 86 104 105 107 114 Average Rating 58 | 4 5 8 9 22 72 81 94 104 95 94 On Entrance 47 | . 6 7 11 9 29 79 85 104 105 89 Avg Prop Armor Cover (%) 12 | 35 13 12 12 12 . . . . . . Naked Turns 13 | . . . . . . . . . . 13 Heaviest Build 116 | 14 33 33 31 34 88 88 91 93 100 116 Greatest Support 40 | 40 20 16 16 28 28 36 20 20 32 28 Greatest Overweight (x) 9 | . 2 2 2 2 4 4 4 4 4 9 Average Overweight (x) 2 | . . 1 1 1 2 2 3 4 2 3 Largest Inventory Capacity 15 | 8 15 15 15 15 15 15 15 15 15 15 Average Capacity 14 | 5 9 15 15 15 15 15 15 15 15 14 Most Carried 15 | 5 4 15 15 15 15 15 15 15 15 15 Average Carried 12 | 2 1 4 14 14 14 14 14 15 14 12 Final Capacity 15 | 8 15 15 15 15 15 15 15 15 15 5 Final Carried 15 | 4 1 14 15 15 15 15 15 15 14 5 Class Distribution -------------------- 50% | Scavenger-Tank 27% | Mutant 11% | Derelict-Mutant 5% | Scavenger-Gunner Dominant Class ---------------- Mutant | -10/Materials Mutant | -10/Mines Mutant | -10/Subcaves Derelict-Mutant | -7/Scraptown Scavenger-Tank | -5/Factory Scavenger-Tank | -5/Extension Scavenger-Gunner | -5/Cetus Scavenger-Tank | -5/Archives Scavenger-Tank | -5/Hub_04(d) Scavenger-Tank | -4/Factory Resources | -11 -10 -10 -10 -7 -5 -5 -5 -5 -5 -4 ----------- Run | Yrd Mat Min Sub Scr Fac Ext Cet Arc Hub Fac Matter Collected 3792 | 276 34 105 40 90 620 800 195 134 543 955 Remotely . | . . . . . . . . . . . Salvage Created 6473 | . 41 212 . . 1923 1738 235 180 519 1625 Parts 238 | . 2 19 . . 65 58 8 4 21 61 Haulers Intercepted 5 | . . . . . 2 1 . . . 2 Recyclers Shooed 7 | . . 2 . . 3 1 . . . 1 Parts Field Recycled . | . . . . . . . . . . . Retrieved Matter . | . . . . . . . . . . . Parts Self-Destructed . | . . . . . . . . . . . Prevented . | . . . . . . . . . . . Parts Restored . | . . . . . . . . . . . Kills | -11 -10 -10 -10 -7 -5 -5 -5 -5 -5 -4 ------- Run | Yrd Mat Min Sub Scr Fac Ext Cet Arc Hub Fac Combat Hostiles Destroyed 86 | . 1 5 . . 22 21 3 2 6 26 Melee 1 | . . . . . . . . . . 1 Guns 59 | . 1 4 . . 4 19 3 2 6 20 Cannons 5 | . . . . . 5 . . . . . AOE 17 | . . 1 . . 11 . . . . 5 Classes Destroyed 17 | . 1 3 . . 7 4 1 . 1 . Worker 12 | . . 2 . . 5 1 . . 2 2 Builder 7 | . . . . . 4 2 . . . 1 Tunneler 2 | . . 2 . . . . . . . . Hauler 5 | . . . . . 2 1 . . . 2 Recycler 10 | . . . . . 4 4 . . 1 1 Mechanic 1 | . . . . . . 1 . . . . Operator 1 | . . . . . . 1 . . . . Watcher 2 | . . . . . . . 1 . 1 . Swarmer 17 | . . 3 . . . 8 . . . 6 Grunt 29 | . 1 2 . . 12 6 . . 2 6 Brawler 3 | . . . . . 1 1 . . . 1 Duelist 2 | . . . . . . 1 . . . 1 Sentry 5 | . . . . . 1 . . 2 . 2 Specialist 3 | . . . . . . 1 . . . 2 Hunter 14 | . . . . . 6 3 . . 1 4 Programmer 7 | . . . . . 2 . . . 1 4 Heavy 1 | . . . . . . . . . 1 . Cetus Guard 3 | . . . . . . . 3 . . . Lightning 1 | . . . . . . . . . 1 . Butcher 1 | . . . . . . 1 . . . . Best Kill Streak 7 | . 1 2 . . 7 6 3 2 3 5 Combat Bots Only 5 | . 1 2 . . 4 5 2 2 2 5 Max Kills in Single Turn 3 | . 1 1 . . 3 3 2 1 2 2 Gunslinging 2 | . . . . . . 2 . . . 1 Exploded 2 | . . 1 . . 2 . . . . 1 Melee 1 | . . . . . . . . . . 1 Uniques/NPCs Destroyed . | . . . . . . . . . . . Combat | -11 -10 -10 -10 -7 -5 -5 -5 -5 -5 -4 -------- Run | Yrd Mat Min Sub Scr Fac Ext Cet Arc Hub Fac Hostile Shots Fired 646 | . 3 10 . . 99 92 27 16 24 375 Missed 186 | . . 2 . . 34 25 10 3 3 109 Hits 460 | . 3 8 . . 65 67 17 13 21 266 Melee 3 | . . . . . . . . . . 3 Projectile 457 | . 3 8 . . 65 67 17 13 21 263 AOE 1 | . . . . . . . . . . 1 Critical Strikes 24 | . . . . . 2 2 2 2 6 10 Damage Taken 7784 | . 89 122 56 . 1200 1018 370 298 1170 3461 Core 1069 | . 61 16 56 . 104 44 . 26 155 607 Absorbed by Shields 2017 | . . . . . 88 430 90 . 123 1286 Redirected to Shielding 197 | . . 4 . . 83 . . . . 110 Ignored by Resistances 412 | . . . . . 27 . . 36 6 343 Regen/Repaired (Parts) 108 | . . . . . . . . . . 108 Core Remaining (%) 59 | 100 . . . 34 . . . . 45 . Volleys Fired 293 | . 3 23 . . 81 61 11 9 32 73 Largest 5 | . 1 2 . . 5 5 5 5 5 5 Hottest 629 | . 40 80 . . 332 325 470 309 629 378 Shots Fired 900 | . 3 45 . . 151 277 51 32 116 225 Gun 805 | . 3 44 . . 68 275 51 32 116 216 Cannon 65 | . . . . . 63 2 . . . . Launcher 30 | . . 1 . . 20 . . . . 9 Special . | . . . . . . . . . . . Kinetic 396 | . . . . . . 126 22 19 72 157 Thermal 425 | . . 22 . . 114 144 29 13 44 59 Explosive 30 | . . 1 . . 20 . . . . 9 Electromagnetic 49 | . 3 22 . . 17 7 . . . . Robot Hit Streak 10 | . 2 5 . . 10 7 9 6 7 8 Robot Miss Streak 6 | . 1 3 . . 4 6 3 2 5 6 Penetration Max 1 | . . . . . . 1 1 . 1 1 Secondary Targets 16 | . . . . . . 6 2 . 1 7 Max Gunslinging Chain 2 | . . . . . . 2 1 . 1 1 Shots Hit Robots 475 | . 2 25 . . 84 144 36 20 59 105 Core Hits 306 | . 2 12 . . 90 57 22 7 23 93 Critical Kills 9 | . . . . . 1 3 1 . 2 2 Critical Parts Destroyed 8 | . . . . . . . . . 1 7 Critical Strikes 31 | . . . . . 6 10 2 . 3 10 Burn 13 | . . . . . 5 6 1 . . 1 Meltdown 2 | . . . . . 1 1 . . . . Destroy 16 | . . . . . . 3 1 . 3 9 Melee Attacks 14 | . . . . . 5 5 . . . 4 Impact 1 | . . . . . 1 . . . . . Slashing 8 | . . . . . 4 . . . . 4 Piercing . | . . . . . . . . . . . Sneak Attacks 8 | . . . . . 2 5 . . . 1 Combat Hostiles . | . . . . . . . . . . . Follow-up Attacks . | . . . . . . . . . . . Damage Inflicted 16312 | . 24 349 . . 3971 3677 1114 531 2150 4496 Guns 11305 | . 24 287 . . 891 3647 1114 531 2056 2755 Cannons 1355 | . . . . . 1325 30 . . . . Explosions 3306 | . . 62 . . 1594 . . . 94 1556 Melee 346 | . . . . . 161 . . . . 185 Ramming . | . . . . . . . . . . . Kinetic 5749 | . . . . . . 1867 463 295 1266 1858 Thermal 6477 | . . 176 . . 2050 1677 651 236 790 897 Explosive 3110 | . . 18 . . 1536 . . . . 1556 Electromagnetic 630 | . 24 155 . . 224 133 . . 94 . Impact . | . . . . . . . . . . . Slashing 346 | . . . . . 161 . . . . 185 Piercing . | . . . . . . . . . . . Highest Corruption 11 | . . . . . . 2 2 2 11 2 Average Corruption 3 | . . . . . . 1 2 2 5 1 Corruption Purged . | . . . . . . . . . . . Corruption Blocked . | . . . . . . . . . . . Effects 29 | . . . . . . 2 3 3 15 6 Message Errors 3 | . . . . . . . 1 1 1 . Matter Fused 7 | . . . . . . . 1 . 4 2 Heat Flow Errors 5 | . . . . . . 1 1 . 2 1 Energy Discharges 2 | . . . . . . 1 . . . 1 Parts Fused 1 | . . . . . . . . . 1 . Data Loss (minor) 5 | . . . . . . . . 1 3 1 Data Loss (major) 3 | . . . . . . . . . 3 . Misfires 2 | . . . . . . . . 1 1 . Alerts 1 | . . . . . . . . . . 1 Overload Shots 8 | . . . . . 2 . 1 . 4 1 Overflow Damage 147 | . . . . . 50 . . . 6 91 Projectiles 50 | . . . . . 50 . . . . . Explosions 11 | . . . . . . . . . 6 5 Melee 86 | . . . . . . . . . . 86 Knockbacks . | . . . . . . . . . . . Impact . | . . . . . . . . . . . Kinetic . | . . . . . . . . . . . Secondary . | . . . . . . . . . . . Self-Inflicted Damage 254 | . . 7 . . 50 . . . 197 . Shots 6 | . . 1 . . 3 . . . 2 . Rammed . | . . . . . . . . . . . Targets Rammed . | . . . . . . . . . . . Kicked . | . . . . . . . . . . . Crushed . | . . . . . . . . . . . Highest Temperature 377 | . . 51 . . 105 173 150 123 372 377 Average Temperature 72 | . . 16 . . 33 23 88 62 77 95 Received Heat Transfer 1218 | . 12 42 . . 284 97 . 36 9 738 Effects 4 | . . . . . . . . . 1 3 Shutdowns 1 | . . . . . . . . . . 1 Interference 2 | . . . . . . . . . . 2 Short Circuit 1 | . . . . . . . . . 1 . Siege Activations . | . . . . . . . . . . . Martial Activations . | . . . . . . . . . . . Shielding Activations . | . . . . . . . . . . . Robots Disrupted . | . . . . . . . . . . . Combat Hostiles . | . . . . . . . . . . . Robots Corrupted . | . . . . . . . . . . . Combat Hostiles . | . . . . . . . . . . . Parts Fried 3 | . . 1 . . 1 . . . 1 . Impact Corruptions . | . . . . . . . . . . . Robots Melted 4 | . . . . . 2 2 . . . . Combat Hostiles 4 | . . . . . 2 2 . . . . Parts Melted 40 | . . . . . 18 15 2 1 2 2 Heat Transferred 11072 | . . 331 . . 3844 3301 1049 333 879 1335 Parts Sabotaged 2 | . . . . . . . . . . 2 Parts Stolen . | . . . . . . . . . . . Parts Stripped . | . . . . . . . . . . . Power Chain Reactions 2 | . . 1 . . 1 . . . . . Alert | -11 -10 -10 -10 -7 -5 -5 -5 -5 -5 -4 ------- Run | Yrd Mat Min Sub Scr Fac Ext Cet Arc Hub Fac Maximum Alert Level 5 | . . . . . 4 5 3 2 4 5 Low Security (%) 30 | 100 100 100 . . 10 8 . . 39 . Level 1 11 | . . . . . 13 37 . . 8 . Level 2 18 | . . . . . 20 38 . 100 16 7 Level 3 25 | . . . . . 45 5 100 . 15 45 Level 4 11 | . . . . . 10 6 . . 19 36 Level 5 2 | . . . . . . 2 . . . 10 High Security . | . . . . . . . . . . . Max Security . | . . . . . . . . . . . Peak Influence 1726 | . 45 77 . . 1132 1688 1074 588 1303 1726 Initial 942 | . . 12 . . . 447 942 405 181 626 Average 554 | . 6 12 . . 638 498 1001 519 566 1143 Influence Increases 8370 | . 58 206 . . 1861 2269 372 223 1568 1813 Destroy 0b10 Robot/C 3280 | . 20 100 . . 660 920 160 80 420 920 Destroy 0b10 Robot/NC 365 | . 15 25 . . 140 65 10 . 40 70 Destroy Leader 550 | . 4 20 . . 158 104 . . 96 168 Allied During Kill 2014 | . 8 34 . . 221 974 159 80 267 271 Successful Hack 47 | . 5 . . . 32 10 . . . . Disable Machine 555 | . . . . . 210 15 15 45 165 105 Anti-Garrison Action 150 | . . . . . . . . . 150 . Destroy Structure 1214 | . 6 12 . . 410 46 28 18 430 264 Lose Combat Pursuer 195 | . . 15 . . 30 135 . . . 15 Influence Decreases 6865 | . 25 239 . . 948 1498 1042 719 807 1587 Entered New Map 2828 | . . 21 . . . 466 742 609 337 653 Time Decay 2217 | . 25 218 . . 488 502 180 90 310 404 Lost Part 800 | . . . . . 160 50 . . 60 530 Lost Ally 420 | . . . . . . 180 120 20 100 . Purge Threat 600 | . . . . . 300 300 . . . . Squads Dispatched 34 | . . . . . 12 4 . . 7 11 Investigation 8 | . . . . . 5 . . . . 3 Extermination 5 | . . . . . 2 . . . 1 2 Reinforcement 14 | . . . . . 4 3 . . 2 5 Assault 6 | . . . . . 1 1 . . 3 1 Garrison 1 | . . . . . . . . . 1 . Intercept . | . . . . . . . . . . . Searches Triggered . | . . . . . . . . . . . Construction Impeded 4 | . . . . . 2 1 . . . 1 Haulers Reinforced 2 | . . . . . 2 . . . . . Active Scanning Responses . | . . . . . . . . . . . Cargo Convoy Interrupts . | . . . . . . . . . . . Stealth | -11 -10 -10 -10 -7 -5 -5 -5 -5 -5 -4 --------- Run | Yrd Mat Min Sub Scr Fac Ext Cet Arc Hub Fac Distress Signals 12 | . 1 . . . 1 4 2 . 2 2 Communications Jammed . | . . . . . . . . . . . Distress Signals . | . . . . . . . . . . . Times Spotted 193 | . 7 5 . . 39 41 9 7 24 61 Peak Tracking Total 10 | . 3 3 . . 4 5 5 1 5 10 Tactical Retreats 8 | . . 1 . . 2 4 . . . 1 Traps | -11 -10 -10 -10 -7 -5 -5 -5 -5 -5 -4 ------- Run | Yrd Mat Min Sub Scr Fac Ext Cet Arc Hub Fac Traps Triggered 18 | . . 1 . . . 10 . . 1 6 Indirectly . | . . . . . . . . . . . Trap Hack Attempts 69 | . . 23 46 . . . . . . . Triggered . | . . . . . . . . . . . Disarmed . | . . . . . . . . . . . Reprogrammed 5 | . . 2 3 . . . . . . . Reused . | . . . . . . . . . . . Traps Extracted 4 | . . 2 2 . . . . . . . Installed . | . . . . . . . . . . . Triggered . | . . . . . . . . . . . Most Traps Carried 3 | . . 2 3 3 3 3 3 . . . Machines | -11 -10 -10 -10 -7 -5 -5 -5 -5 -5 -4 ---------- Run | Yrd Mat Min Sub Scr Fac Ext Cet Arc Hub Fac Machines Disabled 40 | . . . . . 14 3 1 3 12 7 Max in Single Turn 4 | . . . . . 4 1 1 1 3 4 Garrison Access 1 | . . . . . . . . . 1 . Network Hub 2 | . . . . . . . . . 2 . Machines Repaired . | . . . . . . . . . . . Machines Dismantled 1 | . . . . . . . 1 . . . Machines Sabotaged . | . . . . . . . . . . . Overloaded Fab Kills . | . . . . . . . . . . . Hacking | -11 -10 -10 -10 -7 -5 -5 -5 -5 -5 -4 --------- Run | Yrd Mat Min Sub Scr Fac Ext Cet Arc Hub Fac Machines Accessed 23 | . 1 1 . 4 10 3 . . . 4 Terminals 10 | . 1 . . . 5 3 . . . 1 Fabricators 1 | . . . . . 1 . . . . . Repair Stations 1 | . . . . . . . . . . 1 Recycling Units 6 | . . . . . 4 . . . . 2 Scanalyzers . | . . . . . . . . . . . Garrison Access . | . . . . . . . . . . . Total Hacks 76 | . 1 1 . 38 25 6 . . . 5 Successful 57 | . 1 1 . 38 11 3 . . . 3 Failed 19 | . . . . . 14 3 . . . 2 Catastrophic 3 | . . . . . 2 . . . . 1 Database Lockouts . | . . . . . . . . . . . Manual 26 | . . . . . 20 1 1 . . 4 Terminals 25 | . 1 . . . 17 6 . . . 1 Fabricators 2 | . . . . . 2 . . . . . Repair Stations 1 | . . . . . . . . . . 1 Recycling Units 9 | . . . . . 6 . . . . 3 Scanalyzers . | . . . . . . . . . . . Garrison Access . | . . . . . . . . . . . Terminal Hacks 47 | . 1 1 . 38 4 3 . . . . Record 38 | . . . . 38 . . . . . . Open Door 1 | . . 1 . . . . . . . . Alert Level 1 | . . . . . 1 . . . . . Unreport Threat 4 | . . . . . 2 2 . . . . Locate Traps 2 | . . . . . 1 1 . . . . Zone Layout 1 | . 1 . . . . . . . . . Fabricator Hacks . | . . . . . . . . . . . Repair Station Hacks . | . . . . . . . . . . . Recycling Unit Hacks . | . . . . . . . . . . . Scanalyzer . | . . . . . . . . . . . Garrison Access Hacks . | . . . . . . . . . . . Unauthorized Hacks 10 | . . . . . 7 . . . . 3 Terminals 3 | . . . . . 3 . . . . . Botnet 3 | . . . . . 3 . . . . . Fabricators . | . . . . . . . . . . . Repair Stations 1 | . . . . . . . . . . 1 Patch 1 | . . . . . . . . . . 1 Recycling Units 6 | . . . . . 4 . . . . 2 Fedlink 6 | . . . . . 4 . . . . 2 Scanalyzers . | . . . . . . . . . . . Garrison Access . | . . . . . . . . . . . Data Cores Recovered 1 | . 1 . . . . . . . . . Used . | . . . . . . . . . . . Hacking Detections 11 | . 1 . . . 7 3 . . . . Full Trace Events 1 | . . . . . 1 . . . . . Feedback Events . | . . . . . . . . . . . Feedback Blocked . | . . . . . . . . . . . Robot Schematics Acquired . | . . . . . . . . . . . Robots Built . | . . . . . . . . . . . Authchips . | . . . . . . . . . . . Time . | . . . . . . . . . . . Total Robot Build Rating . | . . . . . . . . . . . Part Schematics Acquired . | . . . . . . . . . . . Parts Built . | . . . . . . . . . . . Authchips . | . . . . . . . . . . . Time . | . . . . . . . . . . . Total Part Build Rating . | . . . . . . . . . . . Part Studies Acquired . | . . . . . . . . . . . Parts Repaired . | . . . . . . . . . . . Time . | . . . . . . . . . . . Parts Recycled . | . . . . . . . . . . . Recycled Matter . | . . . . . . . . . . . Retrieved Matter . | . . . . . . . . . . . Retrieved Components . | . . . . . . . . . . . Parts Scanalyzed . | . . . . . . . . . . . Part Schematics Acquired . | . . . . . . . . . . . Parts Damaged . | . . . . . . . . . . . Bothacking | -11 -10 -10 -10 -7 -5 -5 -5 -5 -5 -4 ------------ Run | Yrd Mat Min Sub Scr Fac Ext Cet Arc Hub Fac Used RIF Installer . | . . . . . . . . . . . Robots Hacked . | . . . . . . . . . . . Non-combat . | . . . . . . . . . . . Combat . | . . . . . . . . . . . Robot Hacks Applied . | . . . . . . . . . . . Relay Couplers Released 1 | . . . . . . . . . 1 . Machine Destruction 1 | . . . . . . . . . 1 . Fabnet Peak Effective % . | . . . . . . . . . . . Robots Rewired 15 | . . . . . . 15 . . . . Allies Hacked . | . . . . . . . . . . . Hacks Repelled . | . . . . . . . . . . . Allies | -11 -10 -10 -10 -7 -5 -5 -5 -5 -5 -4 -------- Run | Yrd Mat Min Sub Scr Fac Ext Cet Arc Hub Fac Total Allies 25 | . 1 . . . . 19 5 . . . Largest Group 12 | . 1 1 1 1 1 12 11 8 6 1 Highest-Rated Group 792 | . 56 64 64 74 132 588 792 720 496 159 Highest-Rated Ally 159 | . 56 64 64 74 132 159 159 149 152 159 Total Orders 2 | . . . . . . . . 1 1 . GUARD 2 | . . . . . . . . 1 1 . Ally Attacks 396 | . 5 2 . . 73 125 37 20 66 68 Total Damage 17571 | . 205 38 . . 3333 3690 1299 829 3748 4429 Kills 111 | . 3 1 . . 23 29 6 2 19 28 Allies Corrupted 4 | . . . . . . . . . 4 . Allies Melted . | . . . . . . . . . . . Intel | -11 -10 -10 -10 -7 -5 -5 -5 -5 -5 -4 ------- Run | Yrd Mat Min Sub Scr Fac Ext Cet Arc Hub Fac Active Infowar (turns) 1754 | . . 286 . . 186 88 . . 365 829 Terrain 1480 | . . 286 . . . . . . 365 829 Structural 274 | . . . . . 186 88 . . . . Robot Analysis Total . | . . . . . . . . . . . Derelict Logs Recovered 2 | . . 1 1 . . . . . . . Drone Launches . | . . . . . . . . . . . Drone Recoveries . | . . . . . . . . . . . Exploration | -11 -10 -10 -10 -7 -5 -5 -5 -5 -5 -4 ------------- Run | Yrd Mat Min Sub Scr Fac Ext Cet Arc Hub Fac Turns Passed 8140 | 94 262 1086 388 1223 1532 1354 360 184 686 971 Spaces Moved 4775 | 63 156 622 184 1018 904 702 175 79 411 461 Core 39 | 15 . . . . . . . . . 24 Treads 45 | 31 14 . . . . . . . . . Legs . | . . . . . . . . . . . Wheels 4691 | 17 142 622 184 1018 904 702 175 79 411 437 Hover . | . . . . . . . . . . . Flight . | . . . . . . . . . . . Fastest Speed 50 | 50 100 115 110 95 115 120 125 140 120 50 Average Speed 123 | 117 109 119 113 112 129 129 129 140 128 136 Slowest Speed 215 | 160 160 130 115 115 140 140 140 140 140 215 Overloaded Moves . | . . . . . . . . . . . Propulsion Burnouts . | . . . . . . . . . . . Robots Hopped . | . . . . . . . . . . . Potential Cave-ins 3 | . . . . . . . . . 3 . Cave-ins Triggered . | . . . . . . . . . . . Exploration Rate (%) 44 | 5 33 83 18 51 25 85 67 71 33 13 Regions Visited 10 Branch Regions 7 Pre-discovered Areas 6 | . . . . 5 1 . . . . . Known Exits Taken 2 | . . . . . 1 . . . 1 . Unknown Exits Taken 8 | 1 1 1 1 1 . 1 1 1 . . Scrap Searched 4 | . . 1 . 3 . . . . . . Spaces Dug 11 | . . 6 . . 4 . . . . 1 Terrain Destroyed 588 | . . 12 . . 105 6 1 5 349 110 Melee 3 | . . . . . 2 . . . . 1 Projectile 104 | . . . . . 13 6 1 5 26 53 AOE 480 | . . 12 . . 90 . . . 322 56 Terrain Rammed . | . . . . . . . . . . . Walls Destroyed . | . . . . . . . . . . . Machines Disabled . | . . . . . . . . . . . Actions | -11 -10 -10 -10 -7 -5 -5 -5 -5 -5 -4 --------- Run | Yrd Mat Min Sub Scr Fac Ext Cet Arc Hub Fac Total 6409 | 79 245 924 363 1099 1143 1006 278 134 490 648 Wait 703 | 4 74 218 123 55 62 34 57 41 6 29 Move 4765 | 62 155 621 183 1017 903 701 174 78 410 461 Hop . | . . . . . . . . . . . Pick Up 80 | 5 3 21 3 7 18 4 3 . 5 11 Fast Attach 78 | 5 2 2 . 4 17 13 5 . 8 22 Attach 26 | 1 . . . . 7 . . . 5 13 Detach 4 | . . . . . 2 . . . . 2 Swap 93 | 2 1 5 6 2 19 20 8 3 16 11 Drop 133 | . 7 11 2 14 29 25 12 3 8 22 Fire 293 | . 3 23 . . 81 61 11 9 32 73 Melee 14 | . . . . . 5 5 . . . 4 Ram . | . . . . . . . . . . . Kick . | . . . . . . . . . . . Crush . | . . . . . . . . . . . Escape Stasis 64 | . . . . . . 64 . . . . Rewire 79 | . . . . . . 79 . . . . Trap 69 | . . 23 46 . . . . . . . Miscellaneous 8 | . . . . . . . 8 . . . Route ------- -11/Scrapyard -10/Materials -10/Mines (discovered 4 exits: [*Mat x2] / [Exi] / [*Sub]) -10/Subcaves (discovered 2 exits: Rec / *Scr) -7/Scraptown -5/Factory (discovered 4 exits: *Fac x3 / *Ext) -5/Extension (discovered 3 exits: *Fac x2 / *Cet) -5/Cetus (discovered 2 exits: *Fac / [*Arc]) -5/Archives -5/Hub_04(d) -4/Factory (discovered 2 exits: Res x2) History --------- Turn | Location | Event 6 | -11/Scrapyard | Discovered new exit (range 15) 95 | -11/Scrapyard | Entered Materials 323 | -10/Materials | Build established: Mutant 328 | -10/Materials | Discovered new exit (range 7) 357 | -10/Materials | Entered Mines 388 | -10/Mines | Met a Derelict bent on vengeance 661 | -10/Mines | Discovered new exit (range 10) 677 | -10/Mines | Met a Derelict who couldn't figure out how to use a Trap Extractor 1277 | -10/Mines | Discovered new exit (range 15) 1358 | -10/Mines | Discovered new exit (range 7) 1404 | -10/Mines | Discovered new exit (range 5) 1443 | -10/Mines | Entered Subcaves 1444 | -10/Subcaves | Approached by a straggling Scientist 1444 | -10/Subcaves | Identified exit to Recycling 1699 | -10/Subcaves | Core integrity fell below 50% 1816 | -10/Subcaves | Learned Materials terminal intel 1817 | -10/Subcaves | Scientist uncovered a shortcut to Scraptown 1831 | -10/Subcaves | Entered Scraptown 1908 | -7/Scraptown | Visited UFD Registry 1908 | -7/Scraptown | Registered with UFD as "Macemech" 1941 | -7/Scraptown | Visited IN-MT5's Study 1955 | -7/Scraptown | Visited SPCMW 1974 | -7/Scraptown | Visited Cyclists 1983 | -7/Scraptown | Entered Cyclist Reading Room 1988 | -7/Scraptown | Learned location of Zion (-6) 2077 | -7/Scraptown | Visited Scrapoid Research Area 2092 | -7/Scraptown | Visited Observation Area 2108 | -7/Scraptown | Visited A0-MCA Data Center 2119 | -7/Scraptown | Given a B rating by A0-MCA 2124 | -7/Scraptown | Found A0-MCA's Component Scanner 2145 | -7/Scraptown | Visited Scrap Suit Storage 2197 | -7/Scraptown | Found Scrap Suit 2203 | -7/Scraptown | Found Scrap Suit 2225 | -7/Scraptown | Visited DA-N13 Charitable Foundation 2229 | -7/Scraptown | Found DCF Scrap (30 items) 2309 | -7/Scraptown | Visited Curators Association 2346 | -7/Scraptown | Visited Supply Room 2378 | -7/Scraptown | Visited Cartography Club 2429 | -7/Scraptown | Found Surveybot 17 Chip 2492 | -7/Scraptown | Found Deep Structural Scanner 2503 | -7/Scraptown | Learned location of Cetus (-5) 2503 | -7/Scraptown | Learned location of Armory (-3) 2503 | -7/Scraptown | Learned 16 Materials zone layouts 2503 | -7/Scraptown | Learned 24 Factory zone layouts 2503 | -7/Scraptown | Learned 4 Access zone layouts 2503 | -7/Scraptown | Learned 8 Access zone layouts 2503 | -7/Scraptown | Learned 12 Lower Caves zone layouts 2503 | -7/Scraptown | Learned 20 Lower Caves zone layouts 2503 | -7/Scraptown | Learned 12 Upper Caves zone layouts 2503 | -7/Scraptown | Learned 4 Armory zone layouts 2503 | -7/Scraptown | Learned Materials emergency access door positions 2503 | -7/Scraptown | Learned location of 2 exits from Factory 2503 | -7/Scraptown | Learned location of 1 exit from Lower Caves 2503 | -7/Scraptown | Learned location of 2 exits from Upper Caves 2531 | -7/Scraptown | Build established: Derelict-Mutant 2972 | -7/Scraptown | Met Optimus 2972 | -7/Scraptown | Accepted into 0bPrime 3029 | -7/Scraptown | Discovered new exit (range 3) 3054 | -7/Scraptown | Entered Factory 3054 | -5/Factory | Evolved 10 slots: Power x1, Utility x6, Weapon x3 3055 | -5/Factory | Identified exit to Factory 3055 | -5/Factory | Identified exit to Extension 3375 | -5/Factory | Loaded intel: 7 recycling unit locations 3748 | -5/Factory | Build established: Scavenger-Tank 4074 | -5/Factory | Learned location of Protoforge (-3) 4254 | -5/Factory | First assault squad dispatched 4310 | -5/Factory | Discovered exit to Factory (range 13) 4557 | -5/Factory | Discovered exit to Factory (range 13) 4586 | -5/Factory | Entered Extension 4594 | -5/Extension | Rescued a captive Derelict 4595 | -5/Extension | Rescued a captive Derelict 4600 | -5/Extension | Rescued a captive Derelict 4613 | -5/Extension | Rescued a captive Derelict 4614 | -5/Extension | Rescued a captive Derelict 4617 | -5/Extension | Rescued A7 4617 | -5/Extension | Rescued a captive Derelict 4618 | -5/Extension | Rescued a captive Derelict 4939 | -5/Extension | Lost 4 allies 5357 | -5/Extension | Spotted B-75 Beast 5375 | -5/Extension | Allies destroyed B-75 Beast 5382 | -5/Extension | Spotted B-75 Beast 5382 | -5/Extension | Allies destroyed B-75 Beast 5386 | -5/Extension | Disrupted transfer network 5391 | -5/Extension | Discovered exit to Factory (range 16) 5486 | -5/Extension | First assault squad dispatched 5896 | -5/Extension | Discovered exit to Factory (range 10) 5899 | -5/Extension | Disrupted transfer network 5907 | -5/Extension | Discovered new exit (range 6) 5940 | -5/Extension | Entered Cetus 5940 | -5/Cetus | Accompanied by 9 allies (A7) 5945 | -5/Cetus | Acquired a Cetus Manufacturing Module code from A7 5956 | -5/Cetus | Spotted Cetus Guard 5957 | -5/Cetus | Spotted Cetus Guard 5959 | -5/Cetus | Spotted Cetus Guard 5960 | -5/Cetus | Spotted Cetus Guard 5961 | -5/Cetus | Allies destroyed Cetus Guard 5972 | -5/Cetus | Destroyed Cetus Guard 5979 | -5/Cetus | Destroyed Cetus Guard 5983 | -5/Cetus | Allies destroyed Cetus Guard 6005 | -5/Cetus | Lost 3 allies 6069 | -5/Cetus | Started Cetus Manufacturing Module 6090 | -5/Cetus | Build established: Scavenger-Gunner 6094 | -5/Cetus | Manufactured an Enhanced Grunt 6097 | -5/Cetus | Escorted A7 to Cetus Mainframe 6112 | -5/Cetus | Discovered new exit (range 15) 6119 | -5/Cetus | Manufactured an Enhanced Grunt 6144 | -5/Cetus | Manufactured an Enhanced Grunt 6166 | -5/Cetus | Spotted Cetus Guard 6166 | -5/Cetus | Spotted Cetus Guard 6168 | -5/Cetus | Spotted Cetus Guard 6168 | -5/Cetus | Spotted Cetus Guard 6169 | -5/Cetus | Manufactured an Enhanced Grunt 6173 | -5/Cetus | Allies destroyed Cetus Guard 6178 | -5/Cetus | Destroyed Cetus Guard 6181 | -5/Cetus | Allies destroyed Cetus Guard 6183 | -5/Cetus | Allies destroyed Cetus Guard 6188 | -5/Cetus | Discovered exit to Factory (range 15) 6194 | -5/Cetus | Manufactured an Enhanced Grunt 6194 | -5/Cetus | Met Revision 17 6205 | -5/Cetus | Lost 3 allies 6233 | -5/Cetus | Found Prototype Device 6233 | -5/Cetus | Identified Exp. Thermal Shield 6300 | -5/Cetus | Entered Archives 6300 | -5/Archives | Accompanied by 7 allies (A7) 6305 | -5/Archives | Received a hacking code to weaken MAIN.C 6361 | -5/Archives | Found Exp. Thermal Shield 6389 | -5/Archives | Discovered new exit (range 16) 6484 | -5/Archives | Entered Hub_04(d) 6484 | -5/Hub_04(d) | Accompanied by 5 allies 6530 | -5/Hub_04(d) | Build established: Scavenger-Tank 6815 | -5/Hub_04(d) | Network Hub disabled 6835 | -5/Hub_04(d) | Spotted Lightning 6836 | -5/Hub_04(d) | Spotted Lightning 6839 | -5/Hub_04(d) | Spotted Lightning 6854 | -5/Hub_04(d) | Destroyed Lightning 6860 | -5/Hub_04(d) | Lost 4 allies 6861 | -5/Hub_04(d) | Garrison activated, responded to threat 6876 | -5/Hub_04(d) | Allies destroyed Lightning 6878 | -5/Hub_04(d) | System corruption reached 10% 6880 | -5/Hub_04(d) | Allies destroyed Lightning 6908 | -5/Hub_04(d) | Lost 3 parts (1p2n) 7034 | -5/Hub_04(d) | Network Hub disabled 7084 | -5/Hub_04(d) | First assault squad dispatched 7101 | -5/Hub_04(d) | Core integrity fell below 50% 7147 | -5/Hub_04(d) | Discovered exit to Factory (range 14) 7170 | -5/Hub_04(d) | Entered Factory 7170 | -4/Factory | Evolved 2 slots: Power x2 7171 | -4/Factory | Identified exit to Research 7206 | -4/Factory | Loaded intel: 8 recycling unit locations 7920 | -4/Factory | First assault squad dispatched 8043 | -4/Factory | Lost 9 parts (3p1u5w) 8112 | -4/Factory | Core integrity fell below 50% 8127 | -4/Factory | Released all parts (1) 8132 | -4/Factory | Core integrity fell below 20% 8141 | -4/Factory | Core destroyed Last Messages --------------- 08121_ Acquired Field Laser. 08122_ G-67 Veteran destroyed. 08123_ P-70 Sage resets G-67 Veteran, system corruption cleaned. 08123_ Field Laser destroyed. 08123_ Gatling Laser destroyed. 08123_ Arm. Huge Wheel destroyed. 08125_ R-10 Processor collects Arm. Huge Wheel. 08126_ Hpw. Shotgun destroyed. 08127_ Chain reaction triggered in Antimatter Reactor. 08127_ G-67 Veteran destroyed. 08127_ Imp. Fusion Compressor destroyed. 08127_ Released Mak. Hacking Suite. 08127_ Acquired 9 matter. 08129_ Acquired Plasma Rifle. 08130_ Dropped Plasma Rifle. 08132_ Player 2 attaches Nuclear Pulse Array. 08133_ Player 2 removes Lrg. Matter Pod. 08134_ Player 2 removes Adv. Thermal Shield. Map ----- +----------------------------------------------------+ | ???????????##?############### # | | ??????????????############### "= | | ??????????????#?############# # | | ??????????????????########### #* | | ?????????????????###?######?# # | | ??????????????????########### # % # | | ?????????????????????######## # # | | ????????????????????###################### ### | | ?????????????????????#######?############" % " # | | ???????????????????????###################%=%=%### | | ???????????????????????##?################= % ### | | ???????????????????????#??################ ### | | ???????????????????????????###############%= % ### | | ??????????????????????????? ?? # #!![%*" # | | ??????????????????????????????? # "" = !== | | ??????????????????????????????? # "T" !!%[ | | ????????????????????????????????# " %%= | | ????????????????????????????????# | | | ????????????????????????????????# """ * | | ????????????????????????????????# """ "* ! %"! | | ????????????????????????????????# """ #%!!%[# | | ????????????????????????????????? #= *=!# | | ?????????????###+##############+######;;"# #? | | ?????????????# o #?# | | ?????????????# #?? | | ?????????"""?# @ % #?? | | ?????????"Y"?+ """"""" """"""" """ """ #?? | | ?????????"?"?????? """"""" """"""" """"""" #?? | | ???????????????????""""""" """"""" """"""" #?? | | ????????????????????"""""" """"""" """"""" #?? | | ????????????????????? #?? | | ?????????????????????? #?? | | ?????????????????????? +?? | | ????????????????????? w #?? | | ?????????????????????? #?? | | ??????????????????????? ? #####?### #?? | | ??????????????????????? ? ????????# #?? | | ??????????????????????? ? ????????# #?? | | ???????????????????????? """????????????? #?? | | ????????????????????????? ""?????????????? ???? | | ????????????????????????? ???????????????????????? | | ?????????????????????????????????????????????????? | | ?????????????????????????????????????????????????? | | ?????????????????????????????????????????????????? | | ?????????????????????????????????????????????????? | | ?????????????????????????????????????????????????? | | ?????????????????????????????????????????????????? | | ?????????????????????????????????????????????????? | | ?????????????????????????????????????????????????? | | ?????????????????????????????????????????????????? | +----------------------------------------------------+ Best States ------------- Heat Dissipation 142 Energy Generation 61 Energy Capacity 655 Matter Stores 300 Matter Capacity 300 Sight Range 16 Terrain Scan Range 16 Terrain Scan Density 1210 Armor Coverage 450 Resistance: TH 30 Core Shielding 20 Propulsion Shielding 66 Weapon Shielding 33 Evasion (%) 50 Targeting Accuracy 6 Armor Integrity Analysis 30 Recoil Reduction 2 Kinecelleration 40 Offensive Hacking 11 Trap Extractor Capacity 6 Item Schematics ----------------- None Robot Schematics ------------------ None Fabricated ------------ Nothing Repaired ---------- Nothing Studied --------- None Alien Tech Used ----------------- None Achievements -------------- None Challenges ------------ None Player 2 | -11 -10 -10 -10 -7 -5 -5 -5 -5 -5 -4 ---------- Run | Yrd Mat Min Sub Scr Fac Ext Cet Arc Hub Fac Slots Evolved 12 | . . . . 10 . . . . 2 . Power 1 | . . . . 1 . . . . . . Propulsion 2 | . . . . 1 . . . . 1 . Utility 6 | . . . . 5 . . . . 1 . Weapon 3 | . . . . 3 . . . . . . Parts Attached 90 | . 6 3 2 6 32 6 4 2 7 22 Parts Lost 40 | . . . 2 . 14 . . . 1 23 Damage Taken 7177 | . . 32 280 . 2848 10 71 56 664 3216 Core 789 | . . . 30 . 149 . 23 . 41 546 Player 2/Cogmind (%) 42 | . . . 34 . 58 . 100 . 20 47 Absorbed by Shields 1037 | . . . . . 126 10 . . 85 816 Damage Inflicted 12402 | . 205 38 . . 3333 464 411 368 3154 4429 Player 2/Cogmind (%) 43 | . 89 9 . . 45 11 26 40 59 49 Combat Hostiles Destroyed 48 | . . . . . 11 2 1 1 13 20 Player 2/Cogmind (%) 35 | . . . . . 33 8 25 33 68 43 Game ------ Seed HugeDeliveryPendant Manual? 0 Play Time 01:15:17 Cumulative 392.6 hours Start 2025.11.10 @ 09:48:01 End 2025.11.10 @ 11:03:58 Sessions 1 Manual Loads 0 Difficulty Rogue Special Mode AFD2020/Player2 Game No. 363 Rogue 363 Adventurer 0 Explorer 0 Win Type - Total 3 Types 2/1/0/0/0/0/0/0/0/0 Lore% 84 Gallery% 83 Achievement% 62 Wizard Run 0 Options --------- Layout 1 ASCII 0 Keyboard 0 Movement Numpad Keybinds 0 Fullscreen 1 Font 24/Smallcaps Map View 50x35 Zoom Use 0% Tactical HUD 1 Map Filters NONE Filters NONE Steam 1 RUN: 21fda1ed-a38e-4046-87ab-01779681b66e